fUSD/lending_fUSD_20250520
["ID","MTS","AMOUNT","RATE_DAILY","PERIOD"]
[361722969,1747728644526,-150.0,0.00024713,2]
[361722970,1747728644537,-150.0,0.00024714,2]
[361722971,1747728644548,-150.0,0.00024716,2]
[361722972,1747728644559,-150.0,0.00024717,2]
[361722973,1747728644570,-150.0,0.00024718,2]
[361722974,1747728644581,-150.0,0.00024723,2]
[361722975,1747728644592,-150.0,0.00024725,2]
[361722976,1747728644603,-150.0,0.00024727,2]
[361722977,1747728644614,-150.0,0.00024728,2]
[361722978,1747728644625,-150.0,0.00024732,2]
[361722979,1747728644635,-150.0,0.00024732,2]
[361722980,1747728644646,-150.0,0.00024734,2]
[361722981,1747728644656,-150.0,0.00024738,2]
[361722982,1747728644666,-150.0,0.00024742,2]
[361722983,1747728644677,-150.0,0.00024742,2]
[361722984,1747728644688,-150.0,0.00024743,2]
[361722985,1747728644699,-150.0,0.00024745,2]
[361722986,1747728644710,-150.0,0.00024746,2]
[361722987,1747728644721,-150.0,0.00024747,2]
[361722988,1747728644731,-150.0,0.00024751,2]
[361722989,1747728644742,-150.0,0.00024753,2]
[361722990,1747728644752,-500.0,0.00024773,2]
[361722991,1747728644762,-19.56958828,0.00024783,2]
[361722992,1747728644784,-1395.02696505,0.00024783,2]
[361722993,1747728644809,-2585.40344667,0.00024783,2]
[361722994,1747728644821,-151.0,0.000248,7]
[361722995,1747728644835,-151.0,0.000248,7]
[361722996,1747728644846,-9659.3641,0.000248,2]
[361722997,1747728644856,-151.0,0.000248,7]
[361722998,1747728644867,-203.477508,0.000248,7]
[361722999,1747728644878,-203.477508,0.000248,7]
[361723000,1747728644888,-298.99349832,0.000248,2]
[361723001,1747728644900,-150.0,0.000248,2]
[361723002,1747728644910,-150.0,0.000248,2]
[361723003,1747728644921,-150.0,0.000248,2]
[361723004,1747728644932,-150.0,0.000248,2]
[361723005,1747728644942,-150.0,0.000248,2]
[361723006,1747728644953,-150.0,0.000248,2]
[361723007,1747728644964,-150.0,0.000248,2]
[361723008,1747728644975,-150.0,0.000248,2]
[361723009,1747728644986,-150.0,0.000248,2]
[361723010,1747728644996,-150.0,0.000248,2]
[361723011,1747728645007,-150.0,0.00024802,2]
[361723012,1747728645018,-204.0,0.00024858,2]
[361723013,1747728645028,-2271.6333036,0.00024883,2]
[361723014,1747728645039,-151.0,0.000249,7]
[361723015,1747728645050,-151.0,0.000249,7]
[361723016,1747728645061,-151.0,0.000249,7]
[361723017,1747728645072,-151.0,0.000249,7]
[361723018,1747728645085,-151.0,0.000249,7]
[361723019,1747728645096,-151.0,0.000249,7]
[361723020,1747728645107,-151.0,0.000249,7]
[361723021,1747728645118,-151.999157,0.000249,7]
[361723022,1747728645128,-172.65489607,0.000249,2]
[361723023,1747728645139,-569.65272473,0.000249,2]
[361723024,1747728645149,-196.88290931,0.000249,2]
[361723025,1747728645160,-744.36890679,0.000249,12]
[361723026,1747728645171,-3531.4439252,0.00025,2]
[361723027,1747728645182,-190.0,0.00025,2]
[361723028,1747728645193,-1000.0,0.00025,7]
[361723029,1747728645203,-13734.01201631,0.00025,5]
[361723030,1747728645217,-11929.34750335,0.00025,5]
[361723031,1747728645252,-7243.6,0.00025,5]
[361723036,1747728646195,-5944.0,0.00013298,2]
[361723037,1747728646206,-1023.839,0.00016298,2]
[361723038,1747728646218,-35044.161,0.00025,5]
[361723039,1747728646283,-385.0,0.00025,5]
[361723040,1747728646367,-4799.760005,0.00025,5]
[361723041,1747728646380,-517.389,0.00025,5]
[361723042,1747728646589,-76477.44091496,0.00025,5]
[361723043,1747728646600,-500.0,0.00025,2]
[361723044,1747728646617,-500.0,0.00025,2]
[361723045,1747728646628,-150.0,0.00025063,4]
[361723046,1747728646639,-150.0,0.00025149,4]
[361723047,1747728646649,-1584.51,0.000252,2]
[361723048,1747728646660,-436.24,0.000252,2]
[361723049,1747728646671,-348.01,0.000252,2]
[361723050,1747728646682,-2000.0,0.000252,2]
[361723051,1747728646693,-640.62,0.000252,2]
[361723052,1747728646710,-1860.41,0.000252,2]
[361723053,1747728646731,-400.63,0.000252,2]
[361723054,1747728646752,-743.56,0.00025205,2]
[361723055,1747728646764,-20304.91744677,0.000253,2]
[361723056,1747728646775,-282.27626536,0.000253,10]
[361723057,1747728646786,-981.94682139,0.00025321,2]
[361723058,1747728646796,-150.0,0.00025325,4]
[361723059,1747728646808,-500.0,0.00025348,7]
[361723060,1747728646818,-150.0,0.00025379,2]
[361723061,1747728646830,-150.0,0.00025404,4]
[361723062,1747728646840,-150.0,0.00025497,4]
[361723063,1747728646850,-1076.0,0.00025505,2]
[361723064,1747728646863,-150.0,0.00025588,4]
[361723065,1747728646875,-162.9,0.000256,2]
[361723066,1747728646888,-255.75,0.000256,14]
[361723067,1747728646899,-479.98,0.00025609,2]
[361723068,1747728646911,-150.0,0.00025624,4]
[361723069,1747728646923,-4000.0,0.0002566,2]
[361723070,1747728646933,-150.0,0.00025703,2]
[361723071,1747728646943,-287.61899177,0.00025811,2]
[361723072,1747728646955,-150.0,0.00025846,4]
[361723073,1747728646966,-150.0,0.00025851,4]
[361723074,1747728646977,-744.36890679,0.000259,14]
[361723075,1747728646987,-150.0,0.00025933,4]
[361723076,1747728646998,-150.0,0.00025955,2]
[361723077,1747728647008,-201.78548344,0.00025999,30]
[361723078,1747728647020,-150.0,0.00026009,4]
[361723079,1747728647030,-254.54,0.00026027,2]
[361723080,1747728647040,-223.60927542,0.00026027,2]
[361723081,1747728647051,-150.0,0.00026114,4]
[361723082,1747728647064,-1000.0,0.00026152,2]
[361723083,1747728647080,-150.0,0.00026195,4]
[361723084,1747728647091,-150.0,0.00026195,4]
[361723085,1747728647101,-8330.2607519,0.00026301,2]
[361723086,1747728647112,-150.0,0.00026376,4]
[361723087,1747728647122,-158.1862,0.000264,2]
[361723088,1747728647133,-500.0,0.00026444,7]
[361723089,1747728647143,-150.0,0.00026448,4]
[361723090,1747728647154,-28246.28982055,0.000265,2]
[361723091,1747728647165,-151.0,0.000265,7]
[361723092,1747728647175,-151.0,0.000265,7]
[361723093,1747728647185,-151.0,0.000265,7]
[361723094,1747728647196,-151.0,0.000265,7]
[361723095,1747728647207,-221.562043,0.000265,7]
[361723096,1747728647217,-151.0,0.000265,7]
[361723097,1747728647228,-151.0,0.000265,7]
[361723098,1747728647238,-151.0,0.000265,7]
[361723099,1747728647250,-204.862448,0.000265,7]
[361723100,1747728647264,-204.862448,0.000265,7]
[361723101,1747728647275,-151.0,0.000265,7]
[361723102,1747728647286,-151.0,0.000265,7]
[361723103,1747728647297,-151.0,0.000265,7]
[361723104,1747728647308,-151.0,0.000265,7]
[361723105,1747728647319,-157.375695,0.000265,7]
[361723106,1747728647331,-151.0,0.000265,7]
[361723107,1747728647342,-173.071152,0.000265,7]
[361723108,1747728647353,-173.071152,0.000265,7]
[361723109,1747728647363,-151.0,0.000265,7]
[361723110,1747728647373,-151.0,0.000265,7]
[361723111,1747728647384,-151.0,0.000265,7]
[361723112,1747728647394,-203.477508,0.000265,7]
[361723113,1747728647404,-203.477508,0.000265,7]
[361723114,1747728647415,-2356.32,0.00026529,2]
[361723115,1747728647426,-150.0,0.00026532,2]
[361723116,1747728647436,-150.0,0.00026543,4]
[361723117,1747728647447,-569.65272465,0.00026567,2]
[361723118,1747728647458,-150.0,0.00026613,4]
[361723119,1747728647469,-150.0,0.00026639,4]
[361723120,1747728647479,-890.76,0.00026676,2]
[361723121,1747728647490,-500.0,0.00026807,2]
[361723122,1747728647501,-1076.0,0.00026848,2]
[361723123,1747728647511,-1091.85529413,0.00026849,2]
[361723124,1747728647525,-1040.16905516,0.00026849,2]
[361723125,1747728647540,-1140.11036214,0.00026849,2]
[361723126,1747728647551,-1107.4109542,0.00026849,2]
[361723127,1747728647563,-1039.81997415,0.00026849,2]
[361723128,1747728647574,-150.0,0.00026892,4]
[361723129,1747728647586,-744.36890679,0.000269,16]
[361723130,1747728647597,-150.0,0.00026902,4]
[361723131,1747728647610,-4000.0,0.0002691,2]
[361723132,1747728647620,-500.0,0.00026992,7]
[361723133,1747728647631,-2049.13,0.00027,30]
[361723134,1747728647641,-150.0,0.00027,2]
[361723135,1747728647652,-232.48568,0.00027,2]
[361723136,1747728647663,-550.0,0.00027,2]
[361723137,1747728647674,-550.0,0.00027,2]
[361723138,1747728647684,-150.0,0.00027044,2]
[361723139,1747728647695,-150.0,0.00027056,2]
[361723140,1747728647705,-150.0,0.00027066,4]
[361723141,1747728647715,-150.0,0.00027097,2]
[361723142,1747728647726,-150.0,0.00027108,2]
[361723143,1747728647736,-150.0,0.00027109,2]
[361723144,1747728647746,-150.0,0.00027115,2]
[361723145,1747728647757,-150.0,0.00027126,2]
[361723146,1747728647767,-150.0,0.00027165,4]
[361723147,1747728647777,-150.0,0.00027168,2]
[361723148,1747728647787,-192.82,0.00027169,2]
[361723149,1747728647797,-298.26089446,0.0002718,2]
[361723150,1747728647808,-150.0,0.00027185,2]
[361723151,1747728647818,-150.0,0.000272,2]
[361723152,1747728647829,-150.0,0.00027217,4]
[361723153,1747728647839,-150.0,0.0002722,2]
[361723154,1747728647849,-150.0,0.00027222,2]
[361723155,1747728647859,-150.0,0.0002724,4]
[361723156,1747728647870,-150.0,0.00027252,2]
[361723157,1747728647881,-150.0,0.00027256,2]
[361723158,1747728647891,-150.0,0.00027257,2]
[361723159,1747728647901,-150.0,0.0002727,2]
[361723160,1747728647911,-150.0,0.00027272,4]
[361723161,1747728647921,-150.0,0.00027274,2]
[361723162,1747728647932,-151.0,0.00027299,7]
[361723163,1747728647942,-1611.75255364,0.000273,5]
[361723164,1747728647952,-153.24,0.00027387,2]
[361723165,1747728647964,-3467.26253017,0.0002739,2]
[361723166,1747728647974,-1731.98,0.00027397,7]
[361723167,1747728647996,-200.0,0.00027397,2]
[361723168,1747728648007,-254.54,0.00027397,2]
[361723169,1747728648018,-200.0,0.00027397,2]
[361723170,1747728648029,-200.0,0.00027397,2]
[361723171,1747728648039,-500.0,0.00027397,2]
[361723172,1747728648050,-500.0,0.00027397,2]
[361723173,1747728648061,-500.0,0.00027397,2]
[361723174,1747728648072,-500.0,0.00027397,2]
[361723175,1747728648084,-500.0,0.00027397,2]
[361723176,1747728648095,-500.0,0.00027397,2]
[361723177,1747728648107,-340.38591641,0.00027397,2]
[361723178,1747728648118,-212.792646,0.00027397,7]
[361723179,1747728648130,-212.792646,0.00027397,7]
[361723180,1747728648606,-212.792646,0.00027397,7]
[361723181,1747728648619,-212.792646,0.00027397,7]
[361723182,1747728648629,-212.792646,0.00027397,7]
[361723183,1747728648640,-212.792646,0.00027397,7]
[361723184,1747728648650,-212.792646,0.00027397,7]
[361723185,1747728648661,-212.792646,0.00027397,7]
[361723186,1747728648673,-212.792646,0.00027397,7]
[361723187,1747728648683,-212.792646,0.00027397,7]
[361723188,1747728648694,-300.0,0.00027397,2]
[361723189,1747728648705,-3828.69,0.00027397,2]
[361723190,1747728648722,-300.0,0.00027397,80]
[361723191,1747728648734,-172.0,0.00027397,2]
[361723192,1747728648745,-185.7171048,0.00027397,2]
[361723193,1747728648756,-150.0,0.00027397,5]
[361723194,1747728648766,-1200.0,0.000274,2]
[361723195,1747728648776,-555.0,0.000274,2]
[361723196,1747728648787,-2000.0,0.000274,2]
[361723197,1747728648797,-412.0,0.000274,2]
[361723198,1747728648808,-554.73398955,0.000274,2]
[361723199,1747728648818,-150.0,0.00027427,7]
[361723200,1747728648828,-24935.8747127,0.0002749,3]
[361723201,1747728648839,-2500.0,0.000275,2]
[361723202,1747728648850,-150.0,0.00027589,7]
[361723203,1747728648860,-150.0,0.00027589,7]
[361723204,1747728648870,-300.33,0.00027593,2]
[361723205,1747728648881,-200.0,0.00027671,2]
[361723206,1747728648891,-200.0,0.00027671,2]
[361723207,1747728648901,-150.0,0.00027686,2]
[361723208,1747728648911,-150.0,0.0002769,7]
[361723209,1747728648922,-2663.91,0.000278,2]
[361723210,1747728648932,-2174.61,0.000278,2]
[361723211,1747728648943,-4349.23,0.000278,2]
[361723212,1747728648953,-1584.51,0.000278,2]
[361723213,1747728648965,-436.24,0.000278,2]
[361723214,1747728648976,-348.01,0.000278,2]
[361723215,1747728648986,-640.62,0.000278,2]
[361723216,1747728648997,-1860.41,0.000278,2]
[361723217,1747728649007,-400.63,0.000278,2]
[361723218,1747728649018,-150.0,0.00027822,7]
[361723219,1747728649028,-479.98,0.00027873,2]
[361723220,1747728649039,-600.0,0.000279,10]
[361723221,1747728649048,-744.36890679,0.000279,18]
[361723222,1747728649059,-150.0,0.00027938,7]
[361723223,1747728649069,-151.0,0.00027945,5]
[361723224,1747728649081,-200.0,0.00027948,2]
[361723225,1747728649091,-200.0,0.00027948,2]
[361723226,1747728649102,-150.0,0.00027953,7]
[361723227,1747728649113,-500.0,0.00028,15]
[361723228,1747728649124,-851.4522698,0.00028,29]
[361723229,1747728649135,-300.0,0.00028,5]
[361723230,1747728649145,-1000.0,0.00028,5]
[361723231,1747728649156,-1500.0,0.00028,2]
[361723232,1747728649166,-500.0,0.00028088,7]
[361723233,1747728649179,-150.0,0.00028096,7]
[361723234,1747728649190,-4000.0,0.0002816,2]
[361723235,1747728649200,-647.53202288,0.0002819,5]
[361723236,1747728649211,-150.0,0.00028199,7]
[361723237,1747728649223,-150.0,0.00028216,7]
[361723238,1747728649234,-569.65272465,0.00028233,2]
[361723239,1747728649245,-999.999999,0.00028234,3]
[361723240,1747728649256,-150.0,0.00028263,2]
[361723241,1747728649266,-150.0,0.00028286,7]
[361723242,1747728649278,-172.65489604,0.00028405,2]
[361723243,1747728649290,-150.0,0.00028426,7]
[361723244,1747728649300,-150.0,0.00028426,7]
[361723245,1747728649310,-24935.8747127,0.00028453,3]
[361723246,1747728649321,-30000.0,0.00028463,7]
[361723247,1747728649332,-151.0,0.00028463,7]
[361723248,1747728649343,-151.0,0.00028463,7]
[361723249,1747728649354,-150.0,0.00028478,7]
[361723250,1747728649364,-268.70504661,0.00028493,5]
[361723251,1747728649375,-1500.0,0.000285,2]
[361723252,1747728649386,-309.29654756,0.00028549,2]
[361723253,1747728649396,-8330.2607519,0.00028567,2]
[361723254,1747728649407,-150.0,0.00028635,7]
[361723255,1747728649417,-500.0,0.00028636,7]
[361723256,1747728649428,-212.792646,0.000287,7]
[361723257,1747728649438,-212.792646,0.000287,7]
[361723258,1747728649448,-151.0,0.000287,7]
[361723259,1747728649459,-190.037441,0.000287,7]
[361723260,1747728649468,-151.0,0.000287,7]
[361723261,1747728649478,-150.0,0.00028741,7]
[361723262,1747728649488,-254.54,0.00028767,2]
[361723263,1747728649499,-3828.69,0.00028767,2]
[361723264,1747728649510,-1000.0,0.00028767,2]
[361723265,1747728649521,-2663.91,0.000288,2]
[361723266,1747728649534,-2174.61,0.000288,2]
[361723267,1747728649545,-4349.23,0.000288,2]
[361723268,1747728649556,-1584.51,0.000288,2]
[361723269,1747728649568,-436.24,0.000288,2]
[361723270,1747728649578,-348.01,0.000288,2]
[361723271,1747728649589,-314.17,0.000288,120]
[361723272,1747728649600,-640.62,0.000288,2]
[361723273,1747728649612,-392.3763611,0.000288,30]
[361723274,1747728649631,-328.9,0.000288,120]
[361723275,1747728649653,-1860.41,0.000288,2]
[361723276,1747728649665,-400.63,0.000288,2]
[361723277,1747728649675,-150.0,0.00028839,2]
[361723278,1747728649686,-744.36890679,0.000289,20]
[361723279,1747728649697,-150.0,0.0002892,7]
[361723280,1747728649708,-150.0,0.00028984,7]
[361723281,1747728649719,-150.0,0.00028984,7]
[361723282,1747728649729,-900.0,0.00029,30]
[361723283,1747728649739,-1000.0,0.00029,9]
[361723284,1747728649749,-151.67,0.00029,2]
[361723285,1747728649760,-151.67,0.00029,2]
[361723286,1747728649770,-1500.0,0.00029,2]
[361723287,1747728649780,-600.0,0.00029,2]
[361723288,1747728649790,-600.0,0.00029,2]
[361723289,1747728649800,-150.0,0.00029004,7]
[361723290,1747728649810,-150.0,0.0002903,7]
[361723291,1747728649820,-150.0,0.00029267,7]
[361723292,1747728649831,-150.0,0.00029332,7]
[361723293,1747728649841,-150.0,0.00029332,7]
[361723294,1747728649851,-150.0,0.00029332,7]
[361723295,1747728649861,-4000.0,0.0002941,2]
[361723296,1747728649872,-150.0,0.00029416,2]
[361723297,1747728649882,-1500.0,0.000295,2]
[361723298,1747728649892,-150.0,0.00029529,7]
[361723299,1747728649902,-500.0,0.00029613,2]
[361723300,1747728649912,-500.0,0.00029614,2]
[361723301,1747728649922,-150.0,0.00029634,7]
[361723302,1747728649932,-24935.8747127,0.0002965,3]
[361723303,1747728649943,-25000.0,0.0002966,2]
[361723304,1747728649952,-150.0,0.00029681,7]
[361723305,1747728649963,-500.0,0.00029732,7]
[361723306,1747728649974,-150.0,0.00029744,7]
[361723307,1747728649983,-150.0,0.00029792,7]
[361723308,1747728649994,-166.36237897,0.000298,2]
[361723309,1747728650004,-344.362001,0.00029876,5]
[361723310,1747728650014,-204.0,0.00029879,10]
[361723311,1747728650024,-500.0,0.00029889,2]
[361723312,1747728650035,-1200.0,0.000299,10]
[361723313,1747728650045,-569.65272465,0.000299,2]
[361723314,1747728650055,-744.36890679,0.000299,21]
[361723315,1747728650066,-320.74051982,0.00029918,2]
[361723316,1747728650077,-915.78,0.00029979,2]
[361723317,1747728650087,-49871.7494255,0.0002999,3]
[361723318,1747728650098,-150.0,0.00029993,2]
[361723319,1747728650108,-500.0,0.00029999,2]
[361723320,1747728650119,-226.25210655,0.00029999,2]
[361723321,1747728650129,-500.0,0.00029999,2]
[361723322,1747728650139,-500.0,0.00029999,2]
[361723323,1747728650150,-479.86108225,0.00029999,2]
[361723324,1747728650161,-500.0,0.00029999,2]
[361723325,1747728650171,-500.0,0.00029999,2]
[361723326,1747728650181,-500.0,0.00029999,2]
[361723327,1747728650192,-4440.65650187,0.0003,2]
[361723328,1747728650203,-435.84280341,0.0003,120]
[361723329,1747728650213,-900.0,0.0003,31]
[361723330,1747728650224,-500.0,0.0003,5]
[361723331,1747728650234,-100419.31676773,0.0003,30]
[361723332,1747728650245,-179.04411514,0.0003,30]
[361723333,1747728650254,-151.0,0.0003,7]
[361723334,1747728650265,-151.0,0.0003,7]
[361723335,1747728650275,-153.023462,0.0003,7]
[361723336,1747728650285,-151.0,0.0003,7]
[361723337,1747728650294,-151.0,0.0003,7]
[361723338,1747728650305,-152.046976,0.0003,7]
[361723339,1747728650314,-151.0,0.0003,7]
[361723340,1747728650324,-187.039259,0.0003,7]
[361723341,1747728650334,-187.039259,0.0003,7]
[361723342,1747728650344,-151.0,0.0003,7]
[361723343,1747728650354,-151.0,0.0003,7]
[361723344,1747728650364,-151.0,0.0003,7]
[361723345,1747728650375,-151.0,0.0003,7]
[361723346,1747728650386,-3179.1721759,0.0003,3]
[361723347,1747728650397,-213.0,0.0003,2]
[361723348,1747728650407,-1500.0,0.0003,2]
[361723349,1747728650418,-150.0,0.0003003,7]
[361723350,1747728650429,-150.0,0.00030055,7]
[361723351,1747728650440,-2043.0,0.0003007,2]
[361723352,1747728650450,-500.0,0.00030099,15]
[361723353,1747728650460,-2000.0,0.000301,2]
[361723354,1747728650471,-24935.8747127,0.00030127,3]
[361723355,1747728650481,-254.54,0.00030136,2]
[361723356,1747728650491,-479.98,0.00030137,2]
[361723357,1747728650502,-596.99,0.00030137,2]
[361723358,1747728650512,-3828.69,0.00030137,2]
[361723359,1747728650525,-150.0,0.00030137,5]
[361723360,1747728650536,-150.0,0.00030199,2]
[361723361,1747728650546,-151.0,0.000302,7]
[361723362,1747728650556,-151.0,0.000302,7]
[361723363,1747728650567,-203.373816,0.000302,7]
[361723364,1747728650577,-203.373816,0.000302,7]
[361723365,1747728650586,-996.425487,0.000302,7]
[361723366,1747728650597,-996.425487,0.000302,7]
[361723367,1747728650606,-740.84838,0.000302,7]
[361723368,1747728650616,-740.84838,0.000302,7]
[361723369,1747728650626,-150.0,0.00030239,7]
[361723370,1747728650636,-500.0,0.0003028,7]
[361723371,1747728650646,-150.0,0.00030318,7]
[361723372,1747728650656,-150.0,0.00030336,2]
[361723373,1747728650666,-150.0,0.00030378,7]
[361723374,1747728650676,-150.0,0.00030378,7]
[361723375,1747728650686,-500.0,0.00030379,30]
[361723376,1747728650695,-2043.0,0.0003038,2]
[361723377,1747728650705,-150.0,0.00030465,7]
[361723378,1747728650715,-150.0,0.00030473,2]
[361723379,1747728650725,-557.83,0.00030556,3]
[361723380,1747728650735,-150.0,0.00030568,7]
[361723381,1747728650745,-150.0,0.0003057,2]
[361723382,1747728650755,-150.0,0.0003058,7]
[361723383,1747728650765,-150.0,0.0003061,2]
[361723384,1747728650775,-4000.0,0.0003066,2]
[361723385,1747728650786,-2043.0,0.0003069,2]
[361723386,1747728650795,-150.0,0.00030727,7]
[361723387,1747728650805,-150.0,0.00030747,2]
[361723388,1747728650815,-236.0,0.00030752,2]
[361723389,1747728650827,-236.0,0.00030752,2]
[361723390,1747728650837,-236.0,0.00030752,2]
[361723391,1747728650847,-236.0,0.00030752,2]
[361723392,1747728650857,-1900.0,0.000308,11]
[361723393,1747728650867,-300.0,0.00030822,80]
[361723394,1747728650877,-8330.2607519,0.00030834,2]
[361723395,1747728650887,-150.0,0.00030843,7]
[361723396,1747728650897,-150.0,0.00030843,7]
[361723397,1747728650906,-150.0,0.00030843,7]
[361723398,1747728650917,-150.0,0.00030843,7]
[361723399,1747728650927,-584.63337198,0.0003088,120]
[361723400,1747728650939,-150.0,0.00030884,2]
[361723401,1747728650949,-2500.0,0.000309,11]
[361723402,1747728650958,-744.36890679,0.000309,23]
[361723403,1747728650968,-500.0,0.00030927,30]
[361723404,1747728650979,-159.47,0.00030989,2]
[361723405,1747728650990,-159.47,0.00030989,2]
[361723406,1747728651001,-159.47,0.00030989,2]
[361723407,1747728651010,-225075.56723482,0.0003099,3]
[361723408,1747728692649,2107.48844696,0.00025,60]
[361723433,1747729556088,1850.0,6.94e-05,2]
[361723434,1747729556110,2000.0,6.94e-05,2]
[361723435,1747729556132,2000.0,6.94e-05,2]
[361723436,1747729556158,2000.0,6.94e-05,2]
[361723437,1747729556180,2000.0,6.94e-05,2]
[361723438,1747729556202,1674.40633757,6.94e-05,2]
[361723443,1747729614129,-177.2956002,0.000119,2]
[361723444,1747729646520,-156.07558394,0.000114,4]
[361723445,1747729648172,-250.0,0.000114,4]
[361723446,1747729651269,-166.38,0.000114,4]
[361723447,1747729653059,-204.17259812,0.000114,4]
[361723450,1747729723942,325.59366243,0.00010136,2]
[361723451,1747729723972,19.47041175,0.00010136,2]
[361723465,1747729832280,-123.37181794,0.000114,4]
[361723466,1747729832290,-233.08617294,0.0001145,2]
[361723467,1747729832302,-16.91382706,0.0001145,2]
[361723468,1747729832312,-200.0,0.0001145,2]
[361723469,1747729832322,-1149.45152294,0.000115,4]
[361723470,1747729832334,-308.79,0.000115,4]
[361723471,1747729832345,-441.75847706,0.000115,4]
[361723472,1747729832354,-250.0,0.0001158,2]
[361723473,1747729832364,-200.0,0.0001158,2]
[361723474,1747729832373,-729.62298975,0.000116,4]
[361723475,1747729832385,-2070.37701025,0.000116,4]
[361723476,1747729832394,-1200.0,0.00011699,2]
[361723477,1747729832403,-3800.0,0.000117,4]
[361723478,1747729832412,-300.0,0.00011799,2]
[361723479,1747729832422,-4800.0,0.000118,4]
[361723480,1747729832432,-5067.70777803,0.000119,2]
[361723481,1747729832442,-900.0,0.000119,4]
[361723482,1747729832452,-500.0,0.00011999,2]
[361723483,1747729832461,-500.0,0.00011999,2]
[361723484,1747729832471,-500.0,0.00011999,2]
[361723485,1747729832481,-159.1224178,0.00011999,2]
[361723486,1747729832491,-500.0,0.00011999,2]
[361723487,1747729832500,-500.0,0.00011999,2]
[361723488,1747729832510,-500.0,0.00011999,2]
[361723489,1747729832520,-500.0,0.00011999,2]
[361723490,1747729832529,-500.0,0.00011999,2]
[361723491,1747729832539,-500.0,0.00011999,2]
[361723492,1747729832549,-500.0,0.00011999,2]
[361723493,1747729832558,-500.0,0.00011999,2]
[361723494,1747729832568,-500.0,0.00011999,2]
[361723495,1747729832577,-500.0,0.00011999,2]
[361723496,1747729832587,-500.0,0.00011999,2]
[361723497,1747729832598,-500.0,0.00011999,2]
[361723498,1747729832607,-397.06150939,0.00011999,2]
[361723499,1747729832617,-500.0,0.00011999,2]
[361723500,1747729832627,-500.0,0.00011999,2]
[361723501,1747729832636,-500.0,0.00011999,2]
[361723502,1747729832646,-500.0,0.00011999,2]
[361723503,1747729832655,-500.0,0.00011999,2]
[361723504,1747729832665,-500.0,0.00011999,2]
[361723506,1747729832675,-500.0,0.00011999,2]
[361723508,1747729832685,-500.0,0.00011999,2]
[361723510,1747729832695,-500.0,0.00011999,2]
[361723512,1747729832706,-500.0,0.00011999,2]
[361723514,1747729832716,-500.0,0.00011999,2]
[361723516,1747729832726,-500.0,0.00011999,2]
[361723518,1747729832736,-500.0,0.00011999,2]
[361723520,1747729832745,-500.0,0.00011999,2]
[361723522,1747729832755,-158.37647459,0.00011999,2]
[361723524,1747729832765,-44652.29811173,0.00012,2]
[361723527,1747729832776,-1885.935,0.00012,2]